[Event "AUT Bundesliga 2024-25"]
[Site "Austria"]
[Date "2025.04.02"]
[Round "6.34"]
[White "Bosiocic, Marin"]
[Black "Votava, Jan"]
[Result "0-1"]
[Annotator "TA"]
[ECO "E06"]
[WhiteElo "2522"]
[BlackElo "2455"]
[PlyCount "134"]
[EventDate "2024.08.28"]
[EventType "team-tourn"]
[EventCountry "AUT"]
[SourceTitle "playchess.com"]
[Source "ChessBase"]
[SourceQuality "1"]
[TimeControl "40/5400+30:1800+30"]

{[%evp 11,134,0,28,13,70,68,88,69,87,34,50,51,50,39,51,18,51,0,28,22,37,3,14,11,10,11,23,14,13,0,0,0,0,0,0,-18,0,-43,-37,-38,0,0,0,0,24,0,0,0,0,0,0,-23,-25,-77,-39,-45,0,0,0,0,0,-91,-28,-35,-35,-35,-35,-35,0,0,0,0,0,0,0,-396,-402,-855,-854,-758,-726,-5113,-5113,-5106,-769,-812,-775,-834,-752,-1074,-1064,-697,-1058,-1058,-1058,-1050,-1002,-1058,-1058,-1058,-837,-924,-875,-875,-875,-875,-875,-875,-867,-867,-780,-867,-867,-860,-860,-842,-791,-747,-733,-726,-667,-1713,-1700,-1595,-1227]} 1. d4 {[%emt 0:00:04]} Nf6 {[%emt 0:00:23]} 2. c4 {[%emt 0:00:18]} e6 {[%emt 0:00:11]} 3. g3 {[%emt 0:00:22]} d5 {[%emt 0:00:42]} 4. Bg2 {[%emt 0:00:06]} Be7 {[%emt 0:03:56]} 5. Nf3 {[%emt 0:00:12]} O-O {[%emt 0:00:03]} 6. O-O {[%emt 0:00:14]} a5 {[%emt 0:02:15]} 7. Nc3 {[%emt 0:01:41] E06: Closed Catalan: Early deviations.} Na6 {[%emt 0:07:56]} (7... dxc4 $11 8. Ne5 c6) 8. Ne5 $14 {[%emt 0:06:27]} c6 {[%emt 0:02:27]} 9. e4 $146 {[%emt 0:01:03] White is better.} (9. a3 Nc7 10. c5 Rb8 11. Na4 Nd7 12. Nxd7 Bxd7 13. Nb6 Na8 14. Nxa8 Rxa8 15. Qb3 {0-1 Sihite,C (2252)-Chasin,N (2297) Titled Tuesday intern op 31st Aug blitz 2021 (2)}) 9... dxc4 {[%emt 0:13:18]} 10. Nxc4 {[%emt 0:00:30]} (10. Bf4 $16) 10... b5 {[%emt 0:05:28]} 11. Ne3 {[%emt 0:02:26]} Rb8 {[%emt 0:10:01]} 12. e5 {[%emt 0:05:28][%csl LRc6,LRf6]} Nd5 {[%emt 0:00:19]} 13. Ncxd5 {[%emt 0:01:18]} cxd5 {[%emt 0:04:20]} 14. Ng4 {[%emt 0:03:47]} (14. f4 $14) 14... Nc7 {[%emt 0:04:41]} 15. h4 {[%emt 0:04:59]} b4 {[%emt 0:01:16]} 16. Be3 {[%emt 0:01:45]} Ba6 {[%emt 0:01:28]} 17. Re1 {[%emt 0:00:09]} Qd7 {[%emt 0:04:09]} 18. h5 {[%emt 0:07:13][%cal Bh4h5,Bh5h6][%mdl 32]} Rfc8 {[%emt 0:03:27]} 19. h6 {[%emt 0:00:39]} g6 {[%emt 0:00:12]} 20. Nf6+ {[%emt 0:00:30]} Bxf6 {[%emt 0:00:02]} 21. exf6 {[%emt 0:00:08]} Ne8 {[%emt 0:05:29][%cal Bc7e8,Be8d6,Bd6c4][%mdl 32]} 22. Bf4 {[%emt 0:03:26]} Rb6 {[%emt 0:00:06]} 23. Be5 {[%emt 0:00:32]} Nd6 {[%emt 0:06:10]} 24. Rc1 {[%emt 0:03:25]} Nc4 {[%emt 0:03:30]} 25. b3 {[%emt 0:03:02]} Nxe5 {[%emt 0:10:24]} 26. Rxc8+ {[%emt 0:00:09]} Qxc8 {[%emt 0:00:15]} 27. dxe5 {[%emt 0:00:09]} Qc5 {[%emt 0:02:19]} 28. Bf1 {[%emt 0:00:33]} Bxf1 {[%emt 0:01:23]} 29. Kxf1 $11 {[%emt 0:00:06][%mdl 4096] Endgame KQR-KQR} Rc6 {[%emt 0:00:37]} 30. Qd3 {[%emt 0:01:57]} Kf8 {[%emt 0:00:27]} 31. Ra1 {[%emt 0:06:54]} Ke8 {[%emt 0:00:58]} 32. Ke2 {[%emt 0:03:03]} (32. Rd1 $11) 32... Kd7 {[%emt 0:00:29]} 33. Qe3 {[%emt 0:01:26]} Qb5+ {[%emt 0:04:15]} 34. Kd2 {[%emt 0:02:39]} Rc3 {[%emt 0:00:57]} 35. Qd4 {[%emt 0:01:49]} Kc6 {[%emt 0:01:06]} 36. g4 {[%emt 0:08:03]} (36. a3 $1 $11) 36... Qc5 {[%emt 0:02:31]} (36... a4 $17 {and ...Qa5 would now be decisive} 37. Rb1 axb3 38. Rxb3 Rxb3 39. axb3 Qa5) 37. Qxc5+ {[%emt 0:03:02]} Kxc5 {[%emt 0:00:16] KR-KR} 38. a3 $1 {[%emt 0:01:17]} Rxb3 {[%emt 0:00:56]} 39. axb4+ {[%emt 0:01:25]} Kxb4 {[%emt 0:00:39]} 40. Rc1 {[%emt 0:00:06]} Rb2+ {[%emt 0:00:33]} 41. Ke3 {[%emt 0:31:46] aiming for Rc7.} d4+ {[%emt 0:22:27]} 42. Kd3 {[%emt 0:00:00]} (42. Kxd4 Rd2+ 43. Ke3 Rd7) 42... a4 $1 {[%emt 0:01:43]} (42... Rxf2 $2 43. Rc7 $18) 43. f4 $2 {[%emt 0:00:00][%mdl 8192] White is now going downhill.} (43. Rc4+ $11 Kb5 44. Rc7) 43... a3 $19 {[%emt 0:02:19]} 44. f5 {[%emt 0:00:00]} (44. Rc4+ $142 Kb5 (44... Kb3 45. Rc7 $17) 45. Rc7) 44... a2 {[%emt 0:01:43] Black is clearly winning.} (44... exf5 $2 45. e6 Rb3+ (45... fxg4 $2 46. exf7 Rb3+ 47. Ke4 $18) (45... fxe6 $2 46. f7 $18) 46. Kxd4 $18) 45. fxe6 {[%emt 0:00:00]} fxe6 {[%emt 0:00:24]} 46. Ra1 {[%emt 0:00:00]} Kb3 {[%emt 0:01:15]} 47. Kxd4 {[%emt 0:00:00]} Rc2 {[%emt 0:02:29]} (47... Rb1 $142 48. Rxa2 Rd1+ (48... Kxa2 $2 49. Kc5 $19) 49. Kc5 Kxa2) 48. Rf1 {[%emt 0:00:00]} Rc4+ {[%emt 0:00:31]} 49. Ke3 {[%emt 0:01:32]} Rc7 {[%emt 0:00:35]} (49... Rxg4 $2 50. f7 Ra4 (50... Rg3+ $2 51. Kf4 $18) 51. f8=Q $18 (51. f8=R a1=Q $14)) 50. Kd3 {[%emt 0:02:55]} Ra7 {[%emt 0:01:15]} 51. f7 {[%emt 0:04:38] [#]} Rd7+ $1 {[%emt 0:00:21]} (51... a1=B 52. f8=Q (52. f8=R Bxe5 53. R8f7 Ra4 $18) 52... Bxe5 53. Qc5 (53. Rb1+ Ka2 $18) 53... Rd7+ 54. Ke2 Bc3 55. Qb5+ (55. Rf3 Rd2+ 56. Kf1 Rc2 $18) 55... Ka3 56. Qxd7) (51... Rxf7 52. Rxf7 a1=R (52... a1=Q $2 {loses.} 53. Rb7+ Ka3 54. Ra7+ Kb2 55. Rxa1 $18) 53. Rb7+ (53. Rxh7 Rd1+ 54. Ke3 g5 $18) 53... Ka3 54. Ra7+ (54. Rxh7 Kb4 $18) 54... Kb2 55. Rxa1 (55. Rxh7 Rg1 $18) 55... Kxa1 56. Kc4 $18) 52. Ke4 {[%emt 0:00:02] [#]} Rxf7 $3 {[%emt 0:00:24][%mdl 512]} 53. Rxf7 {[%emt 0:00:06]} a1=Q {[%emt 0:00:06]} ({And not} 53... a1=B 54. Rxh7 g5 55. Rb7+ Kc2 56. h7 Bxe5 57. Kxe5 Kd3 58. h8=Q (58. h8=R Kd2 59. Rb2+ Kc3 60. Rhh2 Kc4 61. Rh3 Kc5 62. Rc3#)) 54. Rxh7 {[%emt 0:00:02] KQ-KR} Qb1+ {[%emt 0:00:34]} 55. Kd4 {[%emt 0:00:39]} Qb2+ {[%emt 0:00:36]} 56. Ke4 {[%emt 0:00:08]} Qc2+ {[%emt 0:00:15]} 57. Ke3 {[%emt 0:00:15]} Qh2 {[%emt 0:01:01]} 58. Rb7+ {[%emt 0:01:03]} Kc4 {[%emt 0:00:22]} 59. h7 {[%emt 0:00:15]} Qxe5+ {[%emt 0:00:14]} 60. Kf3 {[%emt 0:00:14]} Qh8 {[%emt 0:01:24]} 61. Kf4 {[%emt 0:00:55]} Qf6+ {[%emt 0:00:32]} 62. Ke4 {[%emt 0:00:14]} g5 {[%emt 0:00:30][%csl Gg5][%cal Rf6f4]} 63. Rc7+ {[%emt 0:00:14]} Kb5 {[%emt 0:00:10]} 64. Rf7 {[%emt 0:00:04]} Qh8 {[%emt 0:00:39]} (64... Qxf7 $2 65. h8=Q $17) 65. Re7 {[%emt 0:00:46]} Kc5 {[%emt 0:00:29]} 66. Ra7 {[%emt 0:00:09]} Qd4+ {[%emt 0:00:33]} 67. Kf3 {[%emt 0:00:05]} Qf4+ {[%emt 0:00:08] Weighted Error Value: White=0.49/Black=0.25 (precise)   Loses game:     	White=1     	---        Mistake:       	White=5     	Black=2      Inaccurate:     	White=3     	Black=6      OK:         	White=14    	Black=17     Best:        	White=2     	Black=4      Strong:       	White=1     	Black=1} 0-1

[Event "AUT Bundesliga 2024-25"]
[Site "Austria"]
[Date "2025.04.02"]
[Round "6.35"]
[White "Maiwald, Jens-Uwe"]
[Black "Livaic, Leon"]
[Result "1-0"]
[Annotator "TA"]
[ECO "C41"]
[WhiteElo "2423"]
[BlackElo "2536"]
[PlyCount "49"]
[EventDate "2024.08.28"]
[EventType "team-tourn"]
[EventCountry "AUT"]
[SourceTitle "playchess.com"]
[Source "ChessBase"]
[SourceQuality "1"]
[TimeControl "40/5400+30:1800+30"]

{[%evp 9,49,31,27,3,19,0,0,8,1,0,0,0,0,0,28,22,35,0,-9,-11,0,5,7,0,0,0,0,0,77,93,321,182,181,277,989,972,983,988,3614,951,2190,1356]} 1. e4 {[%emt 0:00:03]} d6 {[%emt 0:00:14]} 2. d4 {[%emt 0:00:09]} Nf6 {[%emt 0:00:05]} 3. Nc3 {[%emt 0:00:20]} e5 {[%emt 0:00:07]} 4. Nf3 {[%emt 0:00:44]} Nbd7 {[%emt 0:00:07]} 5. Rg1 {[%emt 0:00:28]} c6 {[%emt 0:00:18]} 6. g4 {[%emt 0:01:23] C41: Philidor Defence.} h6 {[%emt 0:00:20]} 7. h4 {[%emt 0:03:19]} exd4 {[%emt 0:00:48]} 8. Nxd4 {[%emt 0:00:48] The position is equal.} Ne5 {[%emt 0:00:13]} 9. g5 {[%emt 0:03:50]} hxg5 {[%emt 0:00:06]} 10. hxg5 {[%emt 0:00:09]} Nfg4 {[%emt 0:00:05]} 11. Be2 {[%emt 0:21:00][%cal Of2f4]} Qb6 {[%emt 0:02:30]} (11... Nh2 $5) 12. Na4 $146 {[%emt 0:18:34]} (12. f3 Nh2 13. Be3 Qxb2 14. Kd2 d5 15. Rb1 Qa3 16. Rb3 Qa5 17. exd5 Bc5 18. Kc1 {0-1 Perez Ponsa,F (2532)-Bortnyk,O (2605) Titled Tuesday intern op 28th Feb Late blitz 2023 (5)}) 12... Qa5+ {[%emt 0:01:02]} 13. Nc3 {[%emt 0:00:06][%cal Of2f4]} d5 {[%emt 0:31:19]} 14. f4 {[%emt 0:04:16] [#]} (14. Rxg4 $2 Rh1+ 15. Bf1 Bxg4 $19) (14. Bxg4 $2 Bxg4 15. f3 Bc5 $19) (14. Nb3 Qb6 15. Qd4 (15. Bxg4 $2 Bxg4 16. Be3 Qd8 $19) 15... Qxd4 16. Nxd4 Bc5 $15) 14... Bb4 {[%emt 0:00:33][%cal Od5e4] ...dxe4! would now be deadly.} 15. fxe5 {[%emt 0:10:30] aiming for g6.} Bxc3+ {[%emt 0:01:02]} 16. bxc3 {[%emt 0:00:05]} Qxc3+ {[%emt 0:00:05]} 17. Qd2 {[%emt 0:00:12]} Qxa1 {[%emt 0:00:45]} 18. e6 {[%emt 0:10:07]} Ne5 {[%emt 0:07:06]} (18... Bxe6 $11 {remains equal.} 19. Nxe6 (19. Bxg4 $2 Bxg4 20. Nb3 Qe5 $19) 19... fxe6 20. Bxg4 dxe4) 19. Nb3 $36 {[%emt 0:02:13][%mdl 2048] White has strong initiative. Chess con chili.} Qb1 $2 {[%emt 0:07:50] This costs Black the game.} (19... Qxa2 $16 {was necessary.} 20. exd5 Qa4 (20... fxe6 21. Qc3 $16)) 20. Qf4 {[%emt 0:00:42]} (20. exd5 $142 O-O (20... Qxa2 $2 {is the wrong capture.} 21. Qf4 $18) (20... fxe6 21. Qd4 $16) 21. Qd4) 20... Bxe6 $18 {[%emt 0:04:16]} 21. Qxe5 {[%emt 0:00:06]} dxe4 $2 {[%emt 0:05:29]} (21... O-O-O 22. Qb2 Qxb2 23. Bxb2 Rh4 24. Bxg7 Rg8) 22. g6 {[%emt 0:04:51] [#] gxf7+ would kill now. White is clearly winning.} ({Weaker is} 22. Qxg7 O-O-O 23. Qb2 Qxb2 24. Bxb2 Rh7 $16) 22... O-O-O {[%emt 0:00:55]} 23. gxf7 {[%emt 0:00:23]} (23. Qxg7 $2 Bxb3 (23... Qxc2 24. gxf7 Qxa2 25. Nd4 $15) 24. Qb2 Bxa2 $19 (24... Qxc2 25. Bg4+ Kc7 26. axb3 $11)) 23... Rh6 {[%emt 0:01:23]} 24. Rf1 {[%emt 0:02:23]} (24. Rxg7 $142 Rf8 25. Qd6 (25. Qxe4 Bxb3 26. Qe8+ Kc7 $18) (25. Kf2 Rxf7+ 26. Rxf7 Bxf7 $18) 25... Rh1+ 26. Kd2 (26. Bf1 Rxf1+ 27. Kxf1 Rxf7+ 28. Rxf7 Bxf7 $18)) 24... Rf8 {[%emt 0:02:41]} 25. Qd6 {[%emt 0:01:50] Weighted Error Value: White=0.40/Black=1.05  Loses game:     	---       	Black=1      Mistake:       	White=1     	Black=2      Inaccurate:     	White=1     	Black=1      OK:         	White=3     	Black=5      Best:        	White=4     	Black=4} 1-0

[Event "AUT Bundesliga 2024-25"]
[Site "Austria"]
[Date "2025.04.02"]
[Round "6.36"]
[White "Saric, Ante"]
[Black "Platzgummer, Fabian"]
[Result "1-0"]
[Annotator "TA"]
[ECO "B44"]
[WhiteElo "2490"]
[BlackElo "2294"]
[PlyCount "115"]
[EventDate "2024.08.28"]
[EventType "team-tourn"]
[EventCountry "AUT"]
[SourceTitle "playchess.com"]
[Source "ChessBase"]
[SourceQuality "1"]
[TimeControl "40/5400+30:1800+30"]

{[%evp 10,115,8,13,18,13,52,14,41,35,39,24,59,53,59,32,43,56,37,44,64,64,60,52,78,72,105,82,114,93,95,95,97,93,96,97,102,90,93,90,95,93,170,168,168,145,240,237,233,237,236,211,241,194,208,202,211,204,219,220,217,185,297,290,287,243,341,263,308,302,306,298,312,299,346,341,352,336,342,336,401,380,533,547,443,557,560,552,558,561,495,524,557,345,345,333,500,468,554,555,869,869,786,727,1135,991,29989,29990]} 1. Nf3 {[%emt 0:00:04]} Nf6 {[%emt 0:00:20]} 2. c4 {[%emt 0:00:05]} c5 {[%emt 0:00:49]} 3. Nc3 {[%emt 0:02:18]} Nc6 {[%emt 0:00:25]} 4. d4 {[%emt 0:01:02]} cxd4 {[%emt 0:00:11]} 5. Nxd4 {[%emt 0:00:05]} e6 {[%emt 0:01:12]} 6. e4 {[%emt 0:00:59]} Bc5 {[%emt 0:02:14] B44: Sicilian: Taimanov: 5 Nb5.} 7. Nb3 {[%emt 0:00:59] 7.Nc2 is the modern continuation.} Be7 {[%emt 0:00:24]} 8. Bf4 {[%emt 0:07:46]} d6 {[%emt 0:06:40] The position is equal.} 9. Be2 {[%emt 0:02:50]} O-O {[%emt 0:04:07]} 10. Qd2 $146 {[%emt 0:06:59]} (10. O-O b6 11. Qd2 h6 12. Rad1 e5 13. Bg3 Bb7 14. Qe3 g5 15. c5 bxc5 16. Nxc5 {1-0 Pogliano,S (2012)-Vada,R (1653) Gallarate Ricciardi op 18th 2014 (1)}) 10... b6 {[%emt 0:11:18]} 11. Rd1 {[%emt 0:08:51][%cal Rf4d6]} Ne5 {[%emt 0:04:46]} 12. Qd4 {[%emt 0:04:50]} Bb7 {[%emt 0:22:05]} 13. Bxe5 {[%emt 0:01:02]} dxe5 {[%emt 0:00:07]} 14. Qxe5 {[%emt 0:00:09]} Qb8 {[%emt 0:00:05]} 15. Qxb8 {[%emt 0:01:59]} Raxb8 {[%emt 0:00:31]} 16. f3 {[%emt 0:02:46]} e5 {[%emt 0:06:31]} 17. Kf2 {[%emt 0:03:15]} Rfd8 {[%emt 0:04:55]} 18. Nd5 {[%emt 0:12:43]} Bd6 {[%emt 0:09:37]} 19. Rd2 {[%emt 0:11:40]} Bc6 {[%emt 0:10:49]} 20. Nxf6+ {[%emt 0:01:35]} gxf6 {[%emt 0:00:03]} 21. Rhd1 {[%emt 0:00:07]} Be7 {[%emt 0:00:35]} 22. Rxd8+ {[%emt 0:00:27]} Bxd8 {[%emt 0:01:34]} 23. Nc1 {[%emt 0:07:41] White is more active.} Be7 {[%emt 0:01:04]} 24. Nd3 {[%emt 0:00:06]} Rd8 {[%emt 0:01:16]} 25. Rc1 {[%emt 0:01:11]} Bc5+ {[%emt 0:03:59]} (25... a5 $16) 26. Nxc5 $18 {[%emt 0:00:19]} bxc5 {[%emt 0:00:01][%mdl 4096] Endgame KRB-KRB. White is a pawn up.} 27. Rc3 {[%emt 0:03:38]} Rd7 {[%emt 0:03:42]} (27... Rb8 $16 28. b3 Kf8) 28. Ra3 {[%emt 0:01:21]} Rc7 {[%emt 0:01:15]} 29. Ra6 {[%emt 0:02:12]} Kf8 {[%emt 0:01:16]} 30. a3 {[%emt 0:00:56]} Ke7 {[%emt 0:00:06]} 31. b4 {[%emt 0:00:05][%cal Bb2b4,Bb4c5,Bc5c6][%mdl 32]} Bd7 {[%emt 0:00:52]} 32. Ke3 {[%emt 0:01:23]} Be6 {[%emt 0:00:50]} 33. bxc5 {[%emt 0:01:09]} Bc8 {[%emt 0:00:33]} 34. Ra5 {[%emt 0:00:31]} a6 {[%emt 0:00:18]} 35. Bd1 {[%emt 0:00:21]} Ra7 {[%emt 0:02:10]} (35... Be6 36. Be2 (36. Rxa6 Rxc5 37. Be2 Bxc4 $16) 36... Ra7) 36. Ba4 {[%emt 0:00:40]} Kd8 {[%emt 0:00:21]} 37. f4 {[%emt 0:08:26]} Kc7 {[%emt 0:01:10]} (37... exf4+ 38. Kxf4 Be6) 38. c6 {[%emt 0:02:10] [#]} Kb6 {[%emt 0:00:31]} 39. Rd5 {[%emt 0:00:06]} Be6 {[%emt 0:00:04]} 40. fxe5 {[%emt 0:01:36]} fxe5 {[%emt 0:01:11]} 41. Rxe5 {[%emt 0:30:33]} Bxc4 {[%emt 0:00:41]} 42. Rh5 {[%emt 0:00:00]} Bb5 {[%emt 0:03:52]} 43. Bc2 {[%emt 0:00:00]} Rc7 {[%emt 0:02:19]} 44. Bb3 {[%emt 0:00:00]} (44. Rxh7 Rxc6 45. Bd1 Rc3+ 46. Kf4 Bf1 47. Rxf7 Bxg2 $16) 44... f6 {[%emt 0:02:44]} 45. a4 {[%emt 0:00:00][%cal Ba3a4,Ba4a5][%mdl 32]} Bxc6 {[%emt 0:00:35]} (45... Bf1 46. Bd5 Bxg2) 46. a5+ {[%emt 0:00:00]} Kb7 {[%emt 0:00:04]} 47. Bg8 {[%emt 0:00:00]} Bd7 {[%emt 0:03:21]} 48. Rxh7 {[%emt 0:00:00]} Kc6 {[%emt 0:00:12]} 49. Kf4 {[%emt 0:00:00]} Kd6 {[%emt 0:00:31]} 50. Rf7 {[%emt 0:00:00]} Ke6 {[%emt 0:00:33]} 51. Rg7+ {[%emt 0:00:00]} Kd6 {[%emt 0:00:06]} 52. h4 {[%emt 0:00:00][%cal Bh2h4,Bh4h5,Bh5h6,Bh6h7][%mdl 32]} Rc5 {[%emt 0:01:06]} (52... Rc1 {might work better.} 53. h5 Rf1+ 54. Kg3 Rh1) 53. Bf7 {[%emt 0:00:00] [#]} Rxa5 {[%emt 0:01:51]} 54. h5 {[%emt 0:00:00] aiming for h6.} Ra1 {[%emt 0:00:16]} 55. h6 {[%emt 0:00:00]} Rf1+ {[%emt 0:02:20]} 56. Kg3 {[%emt 0:00:00]} f5 {[%emt 0:00:57][%cal Bf6f5,Bf5f4][%mdl 32]} 57. h7 {[%emt 0:00:00]} f4+ {[%emt 0:00:14]} 58. Kh2 {[%emt 0:00:00] Weighted Error Value: White=0.17 (very precise) /Black=0.58  Mistake:       	---       	Black=6      Inaccurate:     	White=3     	Black=7      OK:         	White=25    	Black=15     Best:        	White=3     	---} 1-0

[Event "AUT Bundesliga 2024-25"]
[Site "Austria"]
[Date "2025.04.03"]
[Round "7.1"]
[White "Saric, Ivan"]
[Black "Parligras, Mircea-Emilian"]
[Result "1/2-1/2"]
[Annotator "TA"]
[ECO "A13"]
[WhiteElo "2659"]
[BlackElo "2507"]
[PlyCount "154"]
[EventDate "2024.08.28"]
[EventType "team-tourn"]
[EventCountry "AUT"]
[SourceTitle "playchess.com"]
[Source "ChessBase"]
[SourceQuality "1"]
[TimeControl "40/5400+30:1800+30"]

{[%evp 10,154,30,11,9,9,18,6,2,4,0,8,0,-29,1,0,0,0,-14,-36,6,18,16,7,1,0,0,0,0,0,0,0,95,85,82,84,92,88,88,86,85,85,88,92,83,90,86,84,139,132,163,159,207,184,199,194,194,200,200,193,186,147,150,157,201,215,203,210,212,210,200,193,187,197,202,199,210,210,210,210,210,209,210,210,207,196,202,179,179,150,165,143,147,146,179,179,179,179,179,179,184,164,150,0,179,179,181,45,61,34,34,34,68,69,114,8,8,8,8,0,8,8,8,8,65,65,85,65,136,8,8,8,8,8,8,8,8,8,8,8,8,8,8,8,8,8,8]} 1. Nf3 {[%emt 0:00:03]} d5 {[%emt 0:00:17]} 2. g3 {[%emt 0:00:03]} Nf6 {[%emt 0:00:21]} 3. Bg2 {[%emt 0:00:05]} c5 {[%emt 0:00:16]} 4. O-O {[%emt 0:00:15]} e6 {[%emt 0:00:15]} 5. c4 {[%emt 0:01:38]} d4 {[%emt 0:00:29]} 6. e3 {[%emt 0:01:01][%cal Ob2b4]} Nc6 {[%emt 0:00:24] A13: English Opening: 1...e6.} 7. d3 {[%emt 0:00:51]} Bd6 {[%emt 0:00:51]} 8. Na3 {[%emt 0:02:05]} O-O {[%emt 0:00:52]} 9. exd4 {[%emt 0:02:04]} cxd4 {[%emt 0:00:30]} 10. Nc2 {[%emt 0:00:57]} e5 {[%emt 0:00:18]} 11. Re1 {[%emt 0:02:04][%cal Ob2b4]} Re8 {[%emt 0:01:00]} 12. Bg5 {[%emt 0:03:16][%cal Ob2b4]} Bf5 {[%emt 0:00:43]} 13. Nh4 {[%emt 0:03:40]} Bd7 {[%emt 0:04:35]} 14. Qf3 $146 {[%emt 0:08:44]} (14. a3 h6 15. Bd2 Bg4 16. Qb1 Qd7 17. b4 Rac8 18. b5 Nb8 19. Nb4 g5 20. Nf3 {0-1 Sirosh,I (2372)-Pavlov,S (2496) Riga Tech op 8th 2018 (4)}) 14... Bg4 {[%emt 0:10:55]} 15. Qxg4 {[%emt 0:02:09] A sharp opening} Nxg4 {[%emt 0:00:08]} 16. Bxd8 {[%emt 0:00:02]} Raxd8 {[%emt 0:00:20]} 17. Re2 {[%emt 0:04:43]} Nf6 {[%emt 0:07:44]} 18. Rae1 {[%emt 0:04:35]} g6 {[%emt 0:03:14]} 19. Kf1 {[%emt 0:08:26]} Kf8 {[%emt 0:04:49]} 20. c5 {[%emt 0:07:25]} Bc7 {[%emt 0:06:26]} (20... Bxc5 $11 21. Bxc6 bxc6) 21. Bxc6 $1 $16 {[%emt 0:07:09]} bxc6 {[%emt 0:00:06]} 22. Nb4 {[%emt 0:00:02]} Re6 {[%emt 0:20:34]} 23. Na6 $1 {[%emt 0:00:33]} Nd5 {[%emt 0:04:19]} 24. Nf3 {[%emt 0:06:13]} Ba5 {[%emt 0:00:42] Prevents a3.} 25. Rc1 {[%emt 0:01:06]} Rde8 {[%emt 0:09:14]} 26. Ng5 {[%emt 0:00:21][%csl LRe6,LRh7]} R6e7 {[%emt 0:00:05][%cal Oe5e4]} 27. Nxh7+ {[%emt 0:00:20]} Kg7 {[%emt 0:00:05]} 28. Ng5 {[%emt 0:00:03]} f5 {[%emt 0:01:23]} (28... Rh8 $142) 29. Rc4 $1 {[%emt 0:01:30]} Kf6 {[%emt 0:03:23]} 30. h4 {[%emt 0:01:07]} Rb7 {[%emt 0:07:58]} (30... Kg7 $16 {was called for.} 31. Ra4 Bd8) 31. Ra4 {[%emt 0:02:46]} Bc3 {[%emt 0:03:44]} 32. bxc3 {[%emt 0:01:21]} Nxc3 {[%emt 0:00:05]} 33. Rb4 {[%emt 0:10:20]} Rxb4 {[%emt 0:00:07]} 34. Nxb4 {[%emt 0:00:02]} Nxe2 {[%emt 0:00:12]} 35. Kxe2 {[%emt 0:00:03]} Rb8 {[%emt 0:02:34]} 36. Nxc6 {[%emt 0:00:50]} Rc8 {[%emt 0:06:30]} 37. Na5 {[%emt 0:02:42]} (37. Nh7+ Kg7 38. Nxe5 (38. Nxa7 Rc7 $15) 38... Rxc5 $17) 37... Rxc5 {[%emt 0:00:09]} 38. Nc4 {[%emt 0:00:02]} e4 {[%emt 0:01:08]} 39. a4 {[%emt 0:03:32][%cal Ba2a4,Ba4a5][%mdl 32]} Rc7 {[%emt 0:02:00]} 40. Kd2 {[%emt 0:02:53]} Re7 {[%emt 0:00:51]} 41. a5 {[%emt 0:33:34]} Re8 {[%emt 0:11:39]} 42. Ke2 {[%emt 0:00:00]} Kg7 {[%emt 0:03:52]} 43. Nd6 {[%emt 0:00:00]} Re5 {[%emt 0:00:37]} 44. dxe4 {[%emt 0:00:00]} fxe4 {[%emt 0:01:12]} 45. Ngxe4 {[%emt 0:00:00]} Rxa5 {[%emt 0:00:13]} 46. Kd3 {[%emt 0:00:00]} Ra1 {[%emt 0:01:13]} 47. Kxd4 {[%emt 0:00:00]} a5 {[%emt 0:02:06]} 48. Kc4 {[%emt 0:00:00]} Rb1 {[%emt 0:02:23]} 49. Nc3 {[%emt 0:00:00]} Rb4+ {[%emt 0:00:23]} 50. Kc5 {[%emt 0:00:00]} Rb2 {[%emt 0:01:48]} 51. Nde4 {[%emt 0:00:00]} Kf7 {[%emt 0:01:18]} 52. Kc4 {[%emt 0:00:00]} Kg7 {[%emt 0:02:33]} 53. Kd3 {[%emt 0:00:00]} Kh6 {[%emt 0:00:39]} 54. f3 {[%emt 0:00:00]} Kh5 {[%emt 0:00:58]} 55. Nd6 {[%emt 0:00:12]} Rb4 {[%emt 0:02:53] [#]} 56. Nf7 {[%emt 0:03:52]} (56. Ne8 $1 $16) 56... Rb7 $2 {[%emt 0:00:17]} (56... a4 $11 {and Black stays safe.}) 57. Ne5 {[%emt 0:00:27]} Rb3 {[%emt 0:03:20]} 58. Nc6 {[%emt 0:09:34]} (58. Nd7 $18) 58... a4 $14 {[%emt 0:00:40]} 59. Nd4 {[%emt 0:01:57]} Rb4 {[%emt 0:00:37]} 60. Ncb5 {[%emt 0:01:26]} g5 {[%emt 0:01:01]} 61. hxg5 $1 {[%emt 0:00:10]} Kxg5 {[%emt 0:00:02] [#]} 62. Nc3 {[%emt 0:00:30] Dodges Rb1} (62. Na3 $1 $16) 62... Kh5 $11 {[%emt 0:01:09]} 63. Nc2 {[%emt 0:01:37]} Rb3 {[%emt 0:00:06]} 64. Nd4 {[%emt 0:00:20]} Rb4 {[%emt 0:00:14]} 65. Ndb5 {[%emt 0:01:30]} Rb2 {[%emt 0:00:33]} 66. Na3 {[%emt 0:00:28]} Rg2 {[%emt 0:00:50]} (66... Rb3 $11) 67. Ne2 $14 {[%emt 0:00:21] White wants to mate with Nf4+.} (67. Nxa4 Ra2 $11 (67... Rxg3 68. Ke4 $11)) 67... Kg5 {[%emt 0:00:25]} 68. Nc4 {[%emt 0:00:41] and Nc3 should not be overlooked} Rh2 {[%emt 0:00:07]} ({Black should try} 68... Rf2 $14) 69. Nd2 {[%emt 0:00:27]} ({White should play} 69. Kd2 $16) 69... a3 $11 {[%emt 0:00:18] The position is equal.} 70. Ne4+ {[%emt 0:00:03]} Kf5 {[%emt 0:00:24][%cal Oh2e2] and ...Rxe2! should not be overlooked} 71. N4c3 {[%emt 0:00:04]} Rh1 {[%emt 0:00:42]} 72. Nd4+ {[%emt 0:00:07]} Kg6 {[%emt 0:00:45]} 73. g4 {[%emt 0:00:52]} Rg1 {[%emt 0:00:51]} 74. Nc2 {[%emt 0:01:11]} Kg5 {[%emt 0:00:50]} 75. Nxa3 {[%emt 0:00:45]} Rxg4 {[%emt 0:00:10]} 76. Ne4+ {[%emt 0:00:05]} Kf4 {[%emt 0:00:11]} 77. fxg4 {[%emt 0:00:09]} Kxg4 {[%emt 0:00:36] White really could win this.   Weighted Error Value: White=0.11 (very precise) /Black=0.15 (very precise)   Loses game:     	---       	Black=1      Mistake:       	White=4     	Black=5      Inaccurate:     	White=2     	Black=3      OK:         	White=30    	Black=34     Best:        	White=3     	Black=6      Strong:       	White=3     	---} 1/2-1/2